bitfinex-derivatives/quotes_SOLF0:USTF0_20251020
["timestamp","ask_amount","ask_price","bid_price","bid_amount"]
[1760930250233,2.62,187.18,187.11,4.8085]
[1760930250434,2.62,187.16,187.11,4.8085]
[1760930250735,2.62,187.19,187.11,4.8085]
[1760930250930,3.89671599,187.18,187.12,2.05536285]
[1760930251128,2.62,187.16,187.12,2.05536285]
[1760930251432,2.62,187.16,187.12,3.37536285]
[1760930251630,2.05536285,187.22,187.12,3.37536285]
[1760930251631,2.62,187.19,187.14,2.05536285]
[1760930251930,2.62,187.23,187.18,3.37536285]
[1760930252233,2.62,187.23,187.2,2.05536285]
[1760930252737,2.62,187.24,187.2,2.05536285]
[1760930252924,2.62,187.28,187.2,2.05536285]
[1760930253124,2.62,187.26,187.2,2.05536285]
[1760930253327,7.02615757,187.29,187.2,2.05536285]
[1760930253328,6.51442817,187.25,187.2,3.37536285]
[1760930253528,2.62,187.28,187.2,3.37536285]
[1760930253735,2.62,187.26,187.2,3.37536285]
[1760930253934,2.62,187.24,187.2,3.37536285]
[1760930254135,3.8937495,187.28,187.21,1.32]
[1760930254335,2.62,187.26,187.22,2.05536285]
[1760930254539,2.62,187.29,187.22,2.05536285]
[1760930254733,3.893025,187.28,187.22,2.05536285]
[1760930254937,3.893025,187.28,187.18,2.05536285]
[1760930254938,2.62,187.25,187.18,2.05536285]
[1760930255135,3.893025,187.24,187.18,2.05536285]
[1760930255335,2.62,187.25,187.18,2.05536285]
[1760930255643,2.62,187.23,187.18,2.05536285]
[1760930255938,2.62,187.26,187.18,2.05536285]
[1760930256140,2.62,187.24,187.18,2.05536285]
[1760930256335,6.51303051,187.24,187.18,2.05536285]
[1760930256533,2.62,187.24,187.18,2.05536285]
[1760930256937,6.51303051,187.24,187.18,2.05536285]
[1760930257132,2.62,187.24,187.18,2.05536285]
[1760930257334,2.62,187.24,187.16,2.05536285]
[1760930257540,6.51303051,187.24,187.16,2.05536285]
[1760930257741,6.51247307,187.24,187.16,2.05536285]
[1760930258038,6.51247307,187.24,187.18,2.05536285]
[1760930259043,3.89169386,187.26,187.2,2.05536285]
[1760930259242,2.62,187.27,187.2,2.05536285]
[1760930259641,6.51088903,187.27,187.2,2.05536285]
[1760930259839,5.94625188,187.26,187.18,2.05536285]
[1760930260039,2.62,187.23,187.16,2.05536285]
[1760930260343,2.62,187.23,187.14,1.32]
[1760930260344,2.05536285,187.22,187.14,3.37536285]
[1760930260544,5.94714702,187.22,187.14,3.37536285]
[1760930260749,3.89178417,187.22,187.14,1.32]
[1760930261037,6.51178417,187.21,187.1,1.32]
[1760930261241,2.62,187.18,187.08,3.20948607]
[1760930261442,2.62,187.18,187.06,1.32]
[1760930262044,2.62,187.18,187.07,4.8093]
[1760930262839,2.62,187.18,187.09,4.8089]
[1760930263043,6.51249106,187.22,187.1,1.32]
[1760930263244,3.89249106,187.21,187.1,1.32]
[1760930263438,3.89249106,187.2,187.06,1.32]
[1760930263640,2.62,187.27,187.1,1.32]
[1760930263942,3.89130102,187.26,187.1,1.32]
[1760930264140,3.89130102,187.26,187.14,1.32]
[1760930265345,2.62,187.27,187.19,1.32]
[1760930265539,2.62,187.27,187.15,9.44]
[1760930265741,2.62,187.27,187.16,1.32]
[1760930265742,3.89130102,187.26,187.16,1.32]
[1760930267443,3.89130102,187.26,187.16,6.1272]
[1760930267750,2.62,187.27,187.16,1.31]
[1760930268148,6.51130102,187.27,187.16,1.31]
[1760930268350,2.62,187.27,187.16,1.31]
[1760930268950,6.51130102,187.27,187.18,4.8064]
[1760930269150,2.62,187.27,187.18,4.8064]
[1760930269353,2.62,187.27,187.16,1.31]
[1760930269746,2.62,187.27,187.17,4.8067]
[1760930270049,2.82,187.3,187.17,4.8067]
[1760930270250,4.97079472,187.31,187.17,4.8067]
[1760930270549,2.82,187.29,187.19,4.8064]
[1760930270748,2.82,187.29,187.19,6.1164]
[1760930272648,2.82,187.28,187.19,6.1164]
[1760930272852,7.79079472,187.3,187.15,1.31]
[1760930273051,12.34200232,187.3,187.15,1.31]
[1760930274154,2.82,187.29,187.18,4.8067]
[1760930274355,4.5512076,187.3,187.18,4.8067]
[1760930274852,2.82,187.29,187.18,4.8067]
[1760930275049,2.82,187.28,187.18,4.8067]
[1760930275253,2.82,187.29,187.18,4.8067]
[1760930275454,4.5512076,187.3,187.18,4.8067]
[1760930275652,2.82,187.29,187.18,4.8067]
[1760930276554,2.82,187.29,187.16,4.8072]
[1760930276855,2.82,187.28,187.16,4.8072]
[1760930277356,4.97079472,187.29,187.16,4.8072]
[1760930277556,2.82,187.28,187.16,4.8072]
[1760930278055,4.8044,187.27,187.16,4.8072]
[1760930278256,2.82,187.26,187.16,4.8072]
[1760930278456,2.82,187.27,187.13,4.8078]
[1760930278651,2.82,187.26,187.13,4.8078]
[1760930278851,2.82,187.25,187.13,4.8078]
[1760930279159,8.61483009,187.24,187.11,1.31]
[1760930279353,2.82,187.23,187.11,1.31]
[1760930280057,2.82,187.21,187.11,1.31]
[1760930280954,7.6262,187.21,187.11,1.31]
[1760930281252,2.82,187.18,187.07,4.8093]
[1760930281459,8.61483009,187.19,187.07,4.8093]
[1760930281656,2.82,187.17,187.07,4.8093]
[1760930281861,2.82,187.16,187.07,4.8093]
[1760930283462,7.6272,187.16,187.06,1.31]
[1760930284459,2.82,187.14,187.0,1.31]
[1760930285759,4.8082,187.12,187.0,6.1213]
[1760930285960,2.82,187.11,187.0,6.1213]
[1760930286469,2.82,187.14,187.03,1.31]
[1760930288168,2.82,187.14,187.05,1.31]
[1760930288869,2.82,187.14,187.06,4.8098]
[1760930289066,2.82,187.14,187.05,1.31]
[1760930289272,4.97079472,187.19,186.97,46.17]
[1760930289273,2.82,187.15,186.97,46.17]
[1760930289461,2.82,187.15,186.98,1.31]
[1760930290062,2.82,187.15,187.03,1.31]
[1760930291161,7.6277,187.15,187.03,1.31]
[1760930292267,2.82,187.15,187.03,1.31]
[1760930292969,2.82,187.15,187.08,4.8092]
[1760930293868,9.52488171,187.19,187.05,4.8098]
[1760930294070,2.76,187.18,187.05,4.8098]
[1760930294271,2.76,187.18,187.06,1.32]
[1760930294968,4.807,187.17,187.06,1.32]
[1760930295165,2.76,187.16,187.06,1.32]
[1760930296968,4.8076,187.15,187.06,1.32]
[1760930297267,4.96306459,187.19,187.02,4.8106]
[1760930297471,8.61483009,187.16,187.02,4.8106]
[1760930297664,2.83,187.15,187.02,4.8106]
[1760930297869,2.83,187.15,187.02,6.1206]
[1760930298065,8.61483009,187.16,187.02,6.1206]
[1760930298272,4.8077,187.15,187.03,4.8103]
[1760930298667,2.83,187.13,187.03,4.8103]
[1760930299275,2.83,187.13,187.02,1.31]
[1760930299769,4.8087,187.11,187.0,4.8111]
[1760930299971,2.83,187.1,186.99,1.31]
[1760930301076,2.83,187.08,186.99,1.31]
[1760930302077,2.83,187.08,187.01,1.31]
[1760930305976,7.6385,187.12,187.01,1.31]
[1760930306882,2.83,187.12,187.03,1.31]
[1760930307079,2.83,187.16,187.06,1.31]
[1760930307579,2.83,187.16,187.1,1.31]
[1760930308475,3.87840561,187.21,187.11,4.8084]
[1760930308681,2.83,187.2,187.12,1.31]
[1760930310479,2.83,187.21,187.07,1.31]
[1760930310673,2.83,187.19,187.07,1.31]
[1760930311978,2.83,187.19,187.08,4.809]
[1760930312179,6.70974381,187.19,187.08,4.809]
[1760930312682,2.83,187.18,187.08,4.809]
[1760930313879,4.8062,187.2,187.05,4.8098]
[1760930313880,2.83,187.16,187.05,4.8098]
[1760930314081,2.83,187.15,187.05,4.8098]
[1760930314283,6.70974381,187.15,187.05,4.8098]
[1760930314476,2.83,187.15,187.05,4.8098]
[1760930314682,3.87974381,187.18,187.03,1.31]
[1760930315083,2.83,187.19,187.04,1.31]
[1760930315280,6.70974381,187.23,187.04,1.31]
[1760930315483,3.87974381,187.22,187.08,1.31]
[1760930315683,3.87974381,187.22,187.14,1.31]
[1760930315985,2.83,187.23,187.14,1.31]
[1760930316583,2.83,187.25,187.08,1.31]
[1760930316783,2.83,187.21,187.08,1.31]
[1760930318077,2.83,187.21,187.12,1.31]
[1760930318387,2.83,187.25,187.12,1.31]
[1760930318589,3.88595126,187.24,187.12,1.31]
[1760930318785,3.88595126,187.23,187.13,4.808]
[1760930318981,3.88595126,187.24,187.13,4.808]
[1760930319186,3.88595126,187.23,187.13,4.808]
[1760930319384,2.83,187.25,187.13,4.808]
[1760930319689,3.88669473,187.24,187.13,4.808]
[1760930319889,3.88669473,187.23,187.13,4.808]
[1760930320091,2.83,187.25,187.13,4.808]
[1760930320282,3.88762953,187.24,187.13,4.808]
[1760930320486,3.88762953,187.23,187.13,4.808]
[1760930320785,2.83,187.25,187.13,4.808]
[1760930320989,3.88708248,187.24,187.13,4.808]
[1760930321185,3.88708248,187.23,187.13,4.808]
[1760930321488,2.83,187.25,187.13,4.808]
[1760930321686,2.83,187.23,187.13,4.808]
[1760930322083,2.83,187.23,187.14,4.8075]
[1760930322786,2.83,187.23,187.15,1.31]
[1760930323490,2.83,187.23,187.17,4.8069]
[1760930327890,2.83,187.23,187.1,5.22972934]
[1760930328695,2.83,187.23,187.03,9.79289796]
[1760930328696,2.83,187.23,187.16,4.8071]
[1760930329695,2.05364727,187.22,187.16,4.8071]
[1760930330494,4.88364727,187.23,187.16,4.8071]
[1760930331195,2.83,187.23,187.16,4.8071]
[1760930332497,2.83,187.23,187.17,4.8067]
[1760930333290,4.95830002,187.32,187.17,2.05364727]
[1760930333291,2.05364727,187.26,187.17,2.05364727]
[1760930334293,2.65,187.23,187.19,4.8062]
[1760930335699,2.05364727,187.24,187.19,4.8062]
[1760930335994,2.65,187.23,187.19,4.8062]
[1760930337496,2.65,187.23,187.17,4.8069]
[1760930340499,2.65,187.23,187.17,2.05364727]
[1760930340707,2.65,187.27,187.19,2.05364727]
[1760930341402,2.65,187.32,187.23,2.05364727]
[1760930341801,2.65,187.28,187.13,10.72]
[1760930342103,2.65,187.28,187.2,2.05364727]
[1760930342407,2.65,187.28,187.22,4.8054]
[1760930343306,2.65,187.28,187.24,4.8049]
[1760930344304,2.65,187.31,187.23,2.05364727]
[1760930344607,2.65,187.29,187.22,4.8057]
[1760930344909,4.70364727,187.31,187.24,4.8051]
[1760930345306,2.65,187.31,187.24,4.8051]
[1760930345505,2.65,187.34,187.26,4.8047]
[1760930346005,2.65,187.34,187.28,4.8041]
[1760930347709,2.05364727,187.31,187.25,4.8047]
[1760930348212,2.65,187.31,187.25,4.8047]
[1760930350406,2.65,187.29,187.22,4.8055]
[1760930355822,2.73,187.32,187.25,2.05364727]
[1760930356322,2.73,187.32,187.27,2.05364727]
[1760930357418,2.73,187.32,187.16,14.98]
[1760930357419,4.96287521,187.36,187.29,2.05364727]
[1760930357720,2.68,187.37,187.31,2.05364727]
[1760930358222,2.68,187.37,187.29,2.05364727]
[1760930358415,4.73364727,187.37,187.29,2.05364727]
[1760930359218,9.19099153,187.37,187.29,2.05364727]
[1760930359420,4.73364727,187.37,187.29,2.05364727]
[1760930360023,7.64287521,187.37,187.29,6.85734727]
[1760930360224,2.68,187.37,187.29,6.85734727]
[1760930360425,2.68,187.37,187.31,2.05364727]
[1760930360627,2.68,187.37,187.33,4.8029]
[1760930360929,2.68,187.37,187.31,2.05364727]
[1760930361131,2.68,187.37,187.33,4.8029]
[1760930361432,7.64287521,187.41,187.33,6.85654727]
[1760930361929,9.69652248,187.41,187.33,4.8029]
[1760930362331,4.73364727,187.41,187.33,4.8029]
[1760930362532,2.68,187.41,187.33,4.8029]
[1760930365230,2.05364727,187.4,187.2,6.46827605]
[1760930365434,2.68,187.35,187.27,2.05364727]
[1760930365830,2.05364727,187.34,187.25,2.05364727]
[1760930366030,2.68,187.35,187.25,2.05364727]
[1760930366929,2.68,187.35,187.26,4.8047]
[1760930367434,2.68,187.35,187.27,2.05364727]
[1760930367635,2.68,187.35,187.29,2.05364727]
[1760930368033,2.68,187.35,187.29,6.85734727]
[1760930368434,2.05364727,187.38,187.29,6.85734727]
[1760930368630,2.05364727,187.38,187.21,20.9]
[1760930368631,2.68,187.38,187.31,2.05364727]
[1760930369937,4.73364727,187.38,187.3,4.8034]
[1760930372135,2.68,187.37,187.3,4.8034]
[1760930372930,2.68,187.37,187.31,4.8032]
[1760930373134,2.68,187.37,187.31,6.85684727]
[1760930374043,2.68,187.4,187.33,6.85654727]
[1760930375641,2.68,187.4,187.33,4.8029]
[1760930378044,2.68,187.4,187.32,2.05364727]
[1760930378045,2.68,187.4,187.34,4.8024]
[1760930379546,2.05364727,187.38,187.32,4.8031]
[1760930380245,2.68,187.38,187.32,4.8031]
[1760930380854,2.68,187.38,187.3,4.8037]
[1760930381544,2.68,187.37,187.26,4.8046]
[1760930381744,12.62243174,187.38,187.26,4.8046]
[1760930381946,2.68,187.35,187.26,4.8046]
[1760930382143,4.96630203,187.36,187.26,4.8046]
[1760930382349,2.68,187.35,187.26,4.8046]
[1760930382652,2.68,187.34,187.26,4.8046]
[1760930382842,2.68,187.31,187.24,4.8052]
[1760930383446,2.68,187.31,187.21,4.8057]
[1760930383746,2.68,187.3,187.21,4.8057]
[1760930384842,2.68,187.3,187.23,4.8054]
[1760930385948,2.68,187.3,187.2,3.20443896]
[1760930386942,2.68,187.3,187.21,4.8057]
[1760930387143,2.88,187.29,187.2,3.20443896]
[1760930387339,2.88,187.28,187.17,3.20443896]
[1760930388250,6.08443896,187.28,187.17,3.20443896]
[1760930388544,7.84630203,187.27,187.14,3.20443896]
[1760930389052,12.33325466,187.27,187.14,3.20443896]
[1760930389240,7.36695263,187.27,187.14,3.20443896]
[1760930389953,2.88,187.26,187.14,8.01203896]
[1760930390344,2.88,187.25,187.16,4.8072]
[1760930393745,3.20443896,187.22,187.11,4.8083]
[1760930393953,2.88,187.21,187.11,4.8083]
[1760930394348,3.20443896,187.19,187.11,4.8083]
[1760930395862,2.88,187.18,187.11,4.8083]
[1760930396158,3.20443896,187.16,187.02,95.54132592]
[1760930396356,2.88,187.15,187.03,44.76]
[1760930396961,3.20443896,187.13,187.04,4.8101]
[1760930397258,2.88,187.12,187.04,4.8101]
[1760930398448,2.88,187.16,187.03,47.96443896]
[1760930398853,2.88,187.16,187.04,3.20443896]
[1760930399247,2.88,187.16,187.08,3.20443896]
[1760930399952,2.88,187.16,187.08,8.01373896]
[1760930400660,2.88,187.16,187.08,4.8093]
[1760930401154,2.88,187.19,187.06,4.8098]
[1760930401360,3.20443896,187.16,187.03,44.76]
[1760930401764,2.88,187.15,187.03,44.76]
[1760930402254,2.88,187.12,187.03,49.5703]
[1760930402959,2.88,187.12,187.05,4.8101]
[1760930405364,2.88,187.12,187.03,44.76]
[1760930407063,2.88,187.12,187.04,4.8103]
[1760930407260,2.88,187.11,187.03,44.76]
[1760930407768,2.88,187.11,187.03,49.5705]
[1760930408262,2.88,187.11,187.03,44.76]
[1760930408467,4.8086,187.11,187.03,44.76]
[1760930408665,2.88,187.1,187.03,44.76]
[1760930409463,2.88,187.09,187.03,44.76]
[1760930409662,2.88,187.09,187.02,95.54132592]
[1760930409862,2.88,187.09,186.97,44.78]
[1760930410058,2.88,187.07,186.97,44.78]
[1760930410460,2.88,187.07,186.98,4.8117]
[1760930411461,2.88,187.06,186.98,4.8117]
[1760930411669,2.88,187.05,186.97,44.78]
[1760930413170,2.88,187.05,186.98,0.03]
[1760930414268,7.6901,187.05,186.98,0.03]
[1760930414470,2.69,187.04,186.98,0.03]
[1760930415268,2.69,187.04,186.94,0.03]
[1760930416169,2.69,186.99,186.9,4.21]
[1760930416573,2.69,187.08,186.91,0.03]
[1760930416768,4.8101,187.05,186.96,0.03]
[1760930416979,2.69,187.06,186.96,0.03]
[1760930417173,2.87,187.03,186.91,3.20443896]
[1760930417474,2.87,187.03,186.9,5.16]
[1760930418175,4.8109,187.02,186.93,4.8129]
[1760930419372,2.87,187.01,186.9,9.9738]
[1760930419776,2.87,187.01,186.9,5.16]
[1760930421177,2.87,187.01,186.91,4.8134]
[1760930421476,2.87,187.01,186.9,5.16]
[1760930422275,2.87,187.01,186.9,8.36443896]
[1760930422979,2.87,187.01,186.93,4.8132]
[1760930423177,2.87,187.05,186.93,3.20443896]
[1760930424780,7.6801,187.05,186.93,8.01743896]
[1760930424979,2.87,187.04,186.93,8.01743896]
[1760930425176,2.87,187.04,186.93,3.20443896]
[1760930426074,2.87,187.04,186.95,4.8126]
[1760930428284,2.87,187.04,186.93,3.20443896]
[1760930428484,2.87,187.04,186.9,8.36443896]
[1760930429280,2.87,187.04,186.96,4.8124]
[1760930432083,2.87,187.04,186.97,4.8119]
[1760930433290,2.87,187.04,186.98,4.8116]
[1760930438098,6.07443896,187.03,186.98,4.8116]
[1760930439293,3.20443896,187.03,186.98,4.8116]
[1760930439590,2.87,187.02,186.98,4.8116]
[1760930442692,2.05866446,187.0,186.98,4.8116]
[1760930443989,2.05866446,187.02,186.98,4.8116]
[1760930444189,4.92866446,187.02,186.98,4.8116]
[1760930445284,2.05866446,187.0,186.98,4.8116]
[1760930448086,2.05866446,187.0,186.96,4.8124]
[1760930448484,2.77,186.99,186.93,4.8131]
[1760930448689,2.77,186.97,186.93,4.8131]
[1760930449489,2.05866446,186.98,186.93,4.8131]
[1760930450090,2.05866446,186.96,186.93,4.8131]
[1760930451590,2.05866446,186.98,186.93,4.8131]
[1760930453085,2.05866446,186.98,186.94,4.8128]
[1760930455300,2.05866446,187.0,186.96,4.8124]
[1760930455994,4.82866446,187.0,186.96,4.8124]
[1760930457298,2.05866446,186.98,186.96,4.8124]
[1760930459399,4.82866446,186.98,186.96,4.8124]
[1760930462996,4.82866446,186.98,186.94,4.8128]
[1760930464306,2.77,186.97,186.94,4.8128]
[1760930464707,2.05866446,186.98,186.94,4.8128]
[1760930465909,4.82866446,186.98,186.94,4.8128]
[1760930467303,2.05866446,186.98,186.94,4.8128]
[1760930467610,2.77,186.95,186.86,6.46827605]
[1760930467813,9.79496649,186.98,186.87,2.05866446]
[1760930468107,4.82866446,186.98,186.89,2.05866446]
[1760930468310,3.93786669,186.97,186.89,2.05866446]
[1760930468500,3.93786669,186.96,186.89,2.05866446]
[1760930468706,3.93786669,186.95,186.85,21.68]
[1760930468908,4.82866446,186.98,186.87,2.05866446]
[1760930469115,3.93780319,186.97,186.87,2.05866446]
[1760930469320,3.93780319,186.96,186.87,2.05866446]
[1760930469614,3.93780319,186.95,186.87,2.05866446]
[1760930469813,4.82866446,186.98,186.87,2.05866446]
[1760930470014,6.70748303,186.97,186.92,4.8132]
[1760930470211,3.93748303,186.96,186.92,4.8132]
[1760930470414,3.93748303,186.95,186.92,4.8132]
[1760930470615,2.77,186.97,186.92,4.8132]
[1760930470817,3.93717695,186.96,186.92,4.8132]
[1760930471018,3.93717695,186.95,186.92,4.8132]
[1760930471217,2.77,186.97,186.92,4.8132]
[1760930471417,3.93685563,186.96,186.92,4.8132]
[1760930471617,3.93685563,186.95,186.92,4.8132]
[1760930471818,4.82866446,186.98,186.92,4.8132]
[1760930472118,2.82,186.96,186.92,4.8132]
[1760930472319,3.9369927,186.95,186.92,4.8132]
[1760930472515,2.82,186.96,186.92,4.8132]
[1760930472715,3.93673269,186.95,186.92,4.8132]
[1760930472916,2.82,186.96,186.92,4.8132]
[1760930473117,3.93673269,186.95,186.92,4.8132]
[1760930473318,2.82,186.96,186.92,4.8132]
[1760930473619,3.93649499,186.95,186.92,4.8132]
[1760930473920,2.82,186.96,186.92,4.8132]
[1760930474120,3.93635793,186.95,186.92,4.8132]
[1760930474314,2.82,186.96,186.92,4.8132]
[1760930474515,3.93627821,186.95,186.92,4.8132]
[1760930474815,2.82,186.96,186.92,4.8132]
[1760930475011,7.821e-05,186.95,186.93,4.813]
[1760930475214,2.82,187.0,186.9,2.05866446]
[1760930476018,2.82,187.0,186.95,4.8126]
[1760930476219,2.05866446,186.99,186.95,4.8126]
[1760930476421,2.82,186.98,186.95,4.8126]
[1760930477123,2.76,187.0,186.96,4.8122]
[1760930477318,2.05866446,187.01,186.96,4.8122]
[1760930477521,4.05968003,187.0,186.96,4.8122]
[1760930477720,2.76,186.98,186.9,2.05866446]
[1760930477919,2.76,186.98,186.86,9.79289796]
[1760930477920,2.76,186.98,186.93,4.8129]
[1760930478122,2.76,186.96,186.93,4.8129]
[1760930478726,4.81866446,186.99,186.95,4.8126]
[1760930478919,2.76,186.99,186.95,4.8126]
[1760930479521,2.76,186.99,186.95,6.87126446]
[1760930480225,2.76,187.01,186.95,6.87126446]
[1760930480723,2.76,187.01,186.95,4.8126]
[1760930481320,2.76,186.99,186.95,4.8126]
[1760930481521,2.05866446,187.0,186.92,4.8132]
[1760930481825,2.76,186.98,186.92,4.8132]
[1760930482622,2.76,186.97,186.93,4.813]
[1760930482821,4.06071892,186.99,186.93,4.813]
[1760930483022,4.81866446,187.0,186.93,4.813]
[1760930483219,4.06071825,186.99,186.93,4.813]
[1760930483516,4.81866446,187.0,186.93,4.813]
[1760930483720,2.76,186.99,186.93,2.05866446]
[1760930483927,9.78496649,187.02,186.93,2.05866446]
[1760930484222,4.06058802,187.01,186.93,2.05866446]
[1760930484428,6.82058802,187.0,186.93,2.05866446]
[1760930484630,2.76,187.0,186.93,2.05866446]
[1760930484823,2.76,187.01,186.96,4.8122]
[1760930485017,2.76,186.99,186.93,2.05866446]
[1760930486026,2.05866446,187.0,186.94,4.8129]
[1760930486227,2.76,186.99,186.94,4.8129]
[1760930486625,2.76,187.0,186.94,4.8129]
[1760930486824,4.81866446,187.0,186.94,4.8129]
[1760930487028,3.91967012,186.99,186.94,4.8129]
[1760930487228,2.76,186.97,186.94,4.8129]
[1760930487427,3.91967012,186.96,186.94,4.8129]
[1760930487623,2.76,186.97,186.94,4.8129]
[1760930487824,3.9199376,186.96,186.94,4.8129]
[1760930488025,2.76,186.97,186.94,4.8129]
[1760930488226,6.67998072,186.96,186.94,4.8129]
[1760930488528,2.76,186.96,186.94,4.8129]
[1760930488726,2.05866446,186.98,186.85,54.55289796]
[1760930488727,3.9203279,186.95,186.91,4.8136]
[1760930488930,2.76,186.97,186.91,4.8136]
[1760930489133,6.68032852,186.96,186.91,4.8136]
[1760930489324,3.92032852,186.95,186.91,4.8136]
[1760930489531,2.76,186.96,186.91,4.8136]
[1760930489726,3.92047549,186.95,186.91,4.8136]
[1760930489930,2.76,186.97,186.91,4.8136]
[1760930490126,2.76,186.95,186.91,4.8136]
[1760930491626,2.05866446,186.96,186.91,4.8136]
[1760930491827,3.9207443,186.95,186.93,4.8132]
[1760930492027,2.76,186.97,186.93,4.8132]
[1760930492231,3.92074244,186.96,186.93,4.8132]
[1760930492438,3.92074244,186.95,186.93,4.8132]
[1760930492737,2.76,186.97,186.93,4.8132]
[1760930492940,3.92088968,186.96,186.93,4.8132]
[1760930493138,3.92088968,186.95,186.93,4.8132]
[1760930493334,2.76,186.97,186.93,4.8132]
[1760930493534,3.92107505,186.96,186.93,4.8132]
[1760930493739,3.92107505,186.95,186.93,4.8132]
[1760930493941,2.76,186.97,186.93,4.8132]
[1760930494138,3.92107505,186.96,186.93,4.8132]
[1760930494338,3.92107505,186.95,186.93,4.8132]
[1760930494539,2.05866446,186.98,186.93,4.8132]
[1760930494840,2.76,186.96,186.93,4.8132]
[1760930495041,6.68098085,186.95,186.93,4.8132]
[1760930495240,2.76,186.95,186.93,4.8132]
[1760930495539,2.76,186.97,186.93,4.8132]
[1760930495732,3.92089249,186.96,186.93,4.8132]
[1760930495935,3.92089249,186.95,186.93,4.8132]
[1760930496240,6.85085139,186.97,186.93,4.8132]
[1760930496441,3.92084538,186.96,186.93,4.8132]
[1760930496641,3.92084538,186.95,186.93,4.8132]
[1760930496941,2.76,186.97,186.93,4.8132]
[1760930497241,6.68084538,186.96,186.93,4.8132]
[1760930497437,3.92084538,186.95,186.93,4.8132]
[1760930497640,2.05866446,186.98,186.93,4.8132]
[1760930497831,3.9207269,186.97,186.93,4.8132]
[1760930498037,3.92068481,186.96,186.92,2.05866446]
[1760930498341,4.09039826,186.99,186.92,2.05866446]
[1760930498638,3.92039465,186.98,186.92,2.05866446]
[1760930498840,3.92039465,186.97,186.92,2.05866446]
[1760930499038,3.92039465,186.96,186.94,4.8129]
[1760930499237,6.85036217,186.99,186.94,4.8129]
[1760930499434,3.92035925,186.98,186.94,4.8129]
[1760930499639,3.92035925,186.97,186.94,4.8129]
[1760930499840,3.92035925,186.96,186.94,4.8129]
[1760930500036,2.76,186.99,186.94,4.8129]
[1760930500343,3.92022238,186.98,186.94,4.8129]
[1760930500641,2.76,186.96,186.94,4.8129]
[1760930501235,4.81866446,186.98,186.94,4.8129]
[1760930501441,3.92038912,186.97,186.94,4.8129]
[1760930501743,3.92038912,186.96,186.94,4.8129]
[1760930501942,2.76,186.98,186.94,4.8129]
[1760930502143,3.92038912,186.97,186.94,4.8129]
[1760930502442,3.92038912,186.96,186.94,4.8129]
[1760930502637,2.76,186.99,186.94,4.8129]
[1760930502842,2.76,186.97,186.94,4.8129]
[1760930503147,3.92040174,186.96,186.94,4.8129]
[1760930503440,4.81866446,187.0,186.94,4.8129]
[1760930503642,2.76,186.98,186.94,4.8129]
[1760930503843,3.92041253,186.97,186.94,4.8129]
[1760930504042,3.92041253,186.96,186.94,4.8129]
[1760930504243,2.05866446,187.0,186.94,4.8129]
[1760930504443,2.76,186.98,186.94,4.8129]
[1760930504641,3.92042319,186.97,186.94,4.8129]
[1760930504843,3.92042319,186.96,186.94,4.8129]
[1760930505044,2.76,187.0,186.94,4.8129]
[1760930505245,2.76,186.98,186.94,4.8129]
[1760930505442,6.68042319,186.97,186.94,4.8129]
[1760930505642,3.92042319,186.96,186.94,4.8129]
[1760930505841,2.76,186.97,186.94,4.8129]
[1760930506043,3.92047626,186.96,186.94,4.8129]